[Event "Titled Tuesday Blitz February 01 B 2022"]
[White "Araujo Sanchez, Josue"]
[Black "Boros, Denes"]
[WhiteFideId "6416896"]
[BlackFideId "722340"]
[WhiteElo "2357"]
[BlackElo "2464"]
[Result "1/2-1/2"]
[Round "02"]
[TimeControl "180+1"]
[Date "2022.02.01"]
[WhiteClock "0:00:17"]
[BlackClock "0:00:24"]

1. e4 {[%clk 0:02:53]}  c6 {[%clk 0:03:00]} 2. Nc3 {[%clk 0:02:53]}  d5 {[%clk 0:03:01]} 3. Qf3 {[%clk 0:02:53]}  Nf6 {[%clk 0:02:59]} 4. e5 {[%clk 0:02:52]}  Ng8 {[%clk 0:02:59]} 5. d4 {[%clk 0:02:50]}  h6 {[%clk 0:02:56]} 6. Bd3 {[%clk 0:02:49]}  Na6 {[%clk 0:02:55]} 7. a3 {[%clk 0:02:48]}  e6 {[%clk 0:02:52]} 8. Nce2 {[%clk 0:02:43]}  c5 {[%clk 0:02:51]} 9. c3 {[%clk 0:02:44]}  Bd7 {[%clk 0:02:50]} 10. h4 {[%clk 0:02:24]}  Qb6 {[%clk 0:02:48]} 11. h5 {[%clk 0:02:21]}  Bb5 {[%clk 0:02:45]} 12. g4 {[%clk 0:02:21]}  Ne7 {[%clk 0:02:38]} 13. Rh3 {[%clk 0:02:21]}  Bxd3 {[%clk 0:02:22]} 14. Qxd3 {[%clk 0:02:21]}  Nc6 {[%clk 0:02:23]} 15. b4 {[%clk 0:02:19]}  cxd4 {[%clk 0:02:21]} 16. cxd4 {[%clk 0:02:15]}  Nc7 {[%clk 0:02:22]} 17. Rb1 {[%clk 0:02:08]}  Be7 {[%clk 0:02:19]} 18. f4 {[%clk 0:02:06]}  Qb5 {[%clk 0:02:06]} 19. Bd2 {[%clk 0:01:59]}  a6 {[%clk 0:02:00]} 20. Nc3 {[%clk 0:01:58]}  Qxd3 {[%clk 0:01:58]} 21. Rxd3 {[%clk 0:01:59]}  Nb5 {[%clk 0:01:59]} 22. Nxb5 {[%clk 0:01:58]}  axb5 {[%clk 0:02:00]} 23. Ne2 {[%clk 0:01:54]}  g6 {[%clk 0:01:59]} 24. hxg6 {[%clk 0:01:53]}  fxg6 {[%clk 0:02:00]} 25. Kf2 {[%clk 0:01:49]}  h5 {[%clk 0:01:59]} 26. Rh1 {[%clk 0:01:47]}  Kd7 {[%clk 0:01:56]} 27. gxh5 {[%clk 0:01:47]}  gxh5 {[%clk 0:01:56]} 28. Rdh3 {[%clk 0:01:47]}  h4 {[%clk 0:01:56]} 29. Bc1 {[%clk 0:01:43]}  Rhg8 {[%clk 0:01:56]} 30. Bb2 {[%clk 0:01:36]}  Raf8 {[%clk 0:01:50]} 31. R3h2 {[%clk 0:01:33]}  Rg7 {[%clk 0:01:47]} 32. Rg1 {[%clk 0:01:33]}  Rh7 {[%clk 0:01:42]} 33. Kf3 {[%clk 0:01:32]}  Bd8 {[%clk 0:01:41]} 34. Ke3 {[%clk 0:01:27]}  Ne7 {[%clk 0:01:40]} 35. Kd3 {[%clk 0:01:13]}  Rff7 {[%clk 0:01:30]} 36. Rh3 {[%clk 0:01:11]}  Nc6 {[%clk 0:01:21]} 37. Rg4 {[%clk 0:01:01]}  Rhg7 {[%clk 0:01:20]} 38. Rxg7 {[%clk 0:00:59]}  Rxg7 {[%clk 0:01:21]} 39. Rh2 {[%clk 0:00:59]}  Rg4 {[%clk 0:01:17]} 40. Ke3 {[%clk 0:00:58]}  Ne7 {[%clk 0:01:16]} 41. Kf3 {[%clk 0:00:59]}  Rg7 {[%clk 0:01:11]} 42. Nc3 {[%clk 0:00:56]}  Rg3+ {[%clk 0:01:06]} 43. Kf2 {[%clk 0:00:42]}  Ng6 {[%clk 0:01:05]} 44. f5 {[%clk 0:00:28]}  Nf4 {[%clk 0:01:05]} 45. Kf1 {[%clk 0:00:24]}  exf5 {[%clk 0:01:01]} 46. Ne2 {[%clk 0:00:20]}  Rf3+ {[%clk 0:01:01]} 47. Kg1 {[%clk 0:00:18]}  Ke6 {[%clk 0:00:51]} 48. Nc3 {[%clk 0:00:11]}  Rg3+ {[%clk 0:00:49]} 49. Kf1 {[%clk 0:00:11]}  Rf3+ {[%clk 0:00:48]} 50. Kg1 {[%clk 0:00:10]}  h3 {[%clk 0:00:43]} 51. Nxb5 {[%clk 0:00:08]}  Bb6 {[%clk 0:00:41]} 52. Rf2 {[%clk 0:00:07]}  Rxf2 {[%clk 0:00:40]} 53. Kxf2 {[%clk 0:00:08]}  Nd3+ {[%clk 0:00:41]} 54. Kg3 {[%clk 0:00:08]}  Nxb2 {[%clk 0:00:40]} 55. Kxh3 {[%clk 0:00:08]}  Nc4 {[%clk 0:00:25]} 56. a4 {[%clk 0:00:09]}  Nd2 {[%clk 0:00:22]} 57. a5 {[%clk 0:00:09]}  Bd8 {[%clk 0:00:22]} 58. Kg3 {[%clk 0:00:07]}  Be7 {[%clk 0:00:20]} 59. Nc7+ {[%clk 0:00:07]}  Kd7 {[%clk 0:00:20]} 60. Nxd5 {[%clk 0:00:08]}  Bg5 {[%clk 0:00:20]} 61. b5 {[%clk 0:00:05]}  Nc4 {[%clk 0:00:20]} 62. a6 {[%clk 0:00:04]}  bxa6 {[%clk 0:00:20]} 63. bxa6 {[%clk 0:00:05]}  Kc6 {[%clk 0:00:21]} 64. a7 {[%clk 0:00:05]}  Kb7 {[%clk 0:00:21]} 65. e6 {[%clk 0:00:03]}  Kxa7 {[%clk 0:00:20]} 66. e7 {[%clk 0:00:03]}  Nd6 {[%clk 0:00:21]} 67. Nc7 {[%clk 0:00:03]}  Bxe7 {[%clk 0:00:20]} 68. Kf4 {[%clk 0:00:04]}  Kb7 {[%clk 0:00:20]} 69. Nd5 {[%clk 0:00:04]}  Bd8 {[%clk 0:00:20]} 70. Ne3 {[%clk 0:00:04]}  Kc6 {[%clk 0:00:20]} 71. Nxf5 {[%clk 0:00:05]}  Nc4 {[%clk 0:00:20]} 72. Ke4 {[%clk 0:00:06]}  Bf6 {[%clk 0:00:20]} 73. Ne3 {[%clk 0:00:06]}  Nb6 {[%clk 0:00:20]} 74. Kd3 {[%clk 0:00:07]}  Kb5 {[%clk 0:00:20]} 75. Ke4 {[%clk 0:00:07]}  Nd7 {[%clk 0:00:21]} 76. Nd5 {[%clk 0:00:07]}  Bd8 {[%clk 0:00:21]} 77. Ne3 {[%clk 0:00:08]}  Kc6 {[%clk 0:00:21]} 78. Kd3 {[%clk 0:00:09]}  Kd6 {[%clk 0:00:22]} 79. Nc4+ {[%clk 0:00:10]}  Kd5 {[%clk 0:00:22]} 80. Ne3+ {[%clk 0:00:10]}  Ke6 {[%clk 0:00:22]} 81. Nc4 {[%clk 0:00:11]}  Kf5 {[%clk 0:00:23]} 82. Ne3+ {[%clk 0:00:12]}  Kf4 {[%clk 0:00:24]} 83. Nd5+ {[%clk 0:00:12]}  Kf3 {[%clk 0:00:24]} 84. Nc3 {[%clk 0:00:12]}  Nf8 {[%clk 0:00:24]} 85. Kc4 {[%clk 0:00:13]}  Ke3 {[%clk 0:00:24]} 86. Nd5+ {[%clk 0:00:14]}  Kd2 {[%clk 0:00:24]} 87. Nc3 {[%clk 0:00:15]}  Ne6 {[%clk 0:00:24]} 88. Ne4+ {[%clk 0:00:15]}  Ke3 {[%clk 0:00:24]} 89. Nc5 {[%clk 0:00:16]}  Nxd4 {[%clk 0:00:24]} 90. Nb3 {[%clk 0:00:16]}  Nf5 {[%clk 0:00:24]} 91. Nc5 {[%clk 0:00:17]}  Be7 {[%clk 0:00:24]} 92. Ne6 {[%clk 0:00:17]}  Bd6 {[%clk 0:00:24]} 93. Kd5 {[%clk 0:00:17]}  Ba3 {[%clk 0:00:23]} 94. Ng5 {[%clk 0:00:16]}  Kf4 {[%clk 0:00:23]} 95. Ne6+ {[%clk 0:00:16]}  Kf3 {[%clk 0:00:23]} 96. Nd4+ {[%clk 0:00:17]}  Nxd4 {[%clk 0:00:24]} 97. Kxd4 {[%clk 0:00:17]} 1/2-1/2


[Site "https://www.chess.com"]

[Event "Titled Tuesday Blitz February 01 B 2022"]
[White "Brodowski, Piotr"]
[Black "Nakamura, Hikaru"]
[WhiteFideId "1124480"]
[BlackFideId "2016192"]
[WhiteElo "2422"]
[BlackElo "2850"]
[Result "0-1"]
[Round "02"]
[TimeControl "180+1"]
[Date "2022.02.01"]
[WhiteClock "0:00:12"]
[BlackClock "0:01:04"]

1. c4 {[%clk 0:02:55]}  d5 {[%clk 0:02:58]} 2. cxd5 {[%clk 0:02:54]}  Nf6 {[%clk 0:02:58]} 3. Nc3 {[%clk 0:02:54]}  Nxd5 {[%clk 0:02:58]} 4. g3 {[%clk 0:02:55]}  e5 {[%clk 0:02:58]} 5. Bg2 {[%clk 0:02:55]}  Nb6 {[%clk 0:02:58]} 6. e3 {[%clk 0:02:51]}  Nc6 {[%clk 0:02:57]} 7. Nge2 {[%clk 0:02:52]}  Qd3 {[%clk 0:02:56]} 8. O-O {[%clk 0:02:43]}  Be6 {[%clk 0:02:50]} 9. Be4 {[%clk 0:02:30]}  Qd7 {[%clk 0:02:49]} 10. d4 {[%clk 0:02:30]}  exd4 {[%clk 0:02:44]} 11. exd4 {[%clk 0:02:31]}  O-O-O {[%clk 0:02:43]} 12. Be3 {[%clk 0:02:26]}  h5 {[%clk 0:02:25]} 13. Nf4 {[%clk 0:02:25]}  Bg4 {[%clk 0:02:23]} 14. Qb3 {[%clk 0:02:24]}  h4 {[%clk 0:02:15]} 15. a4 {[%clk 0:02:14]}  Na5 {[%clk 0:02:12]} 16. Qb5 {[%clk 0:02:13]}  Nbc4 {[%clk 0:01:49]} 17. b3 {[%clk 0:01:58]}  c6 {[%clk 0:01:40]} 18. Bxc6 {[%clk 0:01:28]}  bxc6 {[%clk 0:01:30]} 19. Qa6+ {[%clk 0:01:28]}  Qb7 {[%clk 0:01:30]} 20. Qxb7+ {[%clk 0:01:28]}  Kxb7 {[%clk 0:01:31]} 21. bxc4 {[%clk 0:01:29]}  Nxc4 {[%clk 0:01:31]} 22. Rab1+ {[%clk 0:01:27]}  Ka8 {[%clk 0:01:29]} 23. d5 {[%clk 0:01:23]}  hxg3 {[%clk 0:01:29]} 24. hxg3 {[%clk 0:01:16]}  Bf3 {[%clk 0:01:27]} 25. Ng2 {[%clk 0:01:17]}  Bd6 {[%clk 0:01:19]} 26. dxc6 {[%clk 0:01:16]}  Rh3 {[%clk 0:01:19]} 27. Rb7 {[%clk 0:01:08]}  Nxe3 {[%clk 0:01:09]} 28. fxe3 {[%clk 0:01:06]}  Bxc6 {[%clk 0:01:06]} 29. Rbxf7 {[%clk 0:01:02]}  Rxg3 {[%clk 0:01:07]} 30. R1f2 {[%clk 0:01:01]}  Be5 {[%clk 0:01:06]} 31. Rf8 {[%clk 0:00:13]}  Rxg2+ {[%clk 0:01:04]} 32. Rxg2 {[%clk 0:00:13]}  Rxf8 {[%clk 0:01:04]} 33. Rc2 {[%clk 0:00:12]}  Bxc3 {[%clk 0:01:04]} 34. Rxc3 {[%clk 0:00:13]}  Bxa4 {[%clk 0:01:04]} 35. Rc7 {[%clk 0:00:12]}  Re8 {[%clk 0:01:04]} 36. Rxg7 {[%clk 0:00:12]}  Rxe3 {[%clk 0:01:04]} 0-1


[Site "https://www.chess.com"]

[Event "Titled Tuesday Blitz February 01 B 2022"]
[White "Dev, Shah"]
[Black "Sviridov, Valery"]
[WhiteFideId "35019058"]
[BlackFideId "4120680"]
[WhiteElo "2098"]
[BlackElo "2454"]
[Result "0-1"]
[Round "02"]
[TimeControl "180+1"]
[Date "2022.02.01"]
[WhiteClock "0:01:29"]
[BlackClock "0:02:45"]

1. d4 {[%clk 0:03:00]}  g6 {[%clk 0:02:58]} 2. c4 {[%clk 0:03:00]}  Bg7 {[%clk 0:02:58]} 3. Nf3 {[%clk 0:02:57]}  d6 {[%clk 0:02:58]} 4. g3 {[%clk 0:02:57]}  Nf6 {[%clk 0:02:57]} 5. Bg2 {[%clk 0:02:55]}  O-O {[%clk 0:02:58]} 6. O-O {[%clk 0:02:55]}  Nbd7 {[%clk 0:02:58]} 7. Nc3 {[%clk 0:02:54]}  e5 {[%clk 0:02:58]} 8. e4 {[%clk 0:02:54]}  Re8 {[%clk 0:02:58]} 9. Re1 {[%clk 0:02:41]}  c6 {[%clk 0:02:55]} 10. h3 {[%clk 0:02:38]}  a5 {[%clk 0:02:53]} 11. Be3 {[%clk 0:02:38]}  exd4 {[%clk 0:02:52]} 12. Nxd4 {[%clk 0:02:38]}  Nc5 {[%clk 0:02:53]} 13. Qc2 {[%clk 0:02:35]}  a4 {[%clk 0:02:53]} 14. Rad1 {[%clk 0:02:33]}  Qa5 {[%clk 0:02:53]} 15. Bf4 {[%clk 0:02:32]}  Nfd7 {[%clk 0:02:49]} 16. Bxd6 {[%clk 0:02:31]}  Ne5 {[%clk 0:02:50]} 17. b3 {[%clk 0:01:46]}  Rd8 {[%clk 0:02:48]} 18. Bxc5 {[%clk 0:01:36]}  Qxc5 {[%clk 0:02:48]} 19. Ne6 {[%clk 0:01:29]}  Bxe6 {[%clk 0:02:45]} 0-1


[Site "https://www.chess.com"]

[Event "Titled Tuesday Blitz February 01 B 2022"]
[White "Erigaisi Arjun"]
[Black "Manukyan, Artyom"]
[WhiteFideId "35009192"]
[BlackFideId "13305786"]
[WhiteElo "2745"]
[BlackElo "2034"]
[Result "1-0"]
[Round "02"]
[TimeControl "180+1"]
[Date "2022.02.01"]
[WhiteClock "0:02:30"]
[BlackClock "0:01:39"]

1. e4 {[%clk 0:03:00]}  c5 {[%clk 0:02:59]} 2. Nf3 {[%clk 0:03:01]}  d6 {[%clk 0:02:59]} 3. b3 {[%clk 0:03:01]}  Nf6 {[%clk 0:02:55]} 4. Nc3 {[%clk 0:03:01]}  g6 {[%clk 0:02:56]} 5. Bb2 {[%clk 0:02:58]}  Bg7 {[%clk 0:02:56]} 6. Bb5+ {[%clk 0:02:57]}  Bd7 {[%clk 0:02:56]} 7. Bxd7+ {[%clk 0:02:56]}  Nbxd7 {[%clk 0:02:55]} 8. d3 {[%clk 0:02:55]}  O-O {[%clk 0:02:55]} 9. O-O {[%clk 0:02:55]}  a6 {[%clk 0:02:54]} 10. a4 {[%clk 0:02:54]}  Rb8 {[%clk 0:02:52]} 11. a5 {[%clk 0:02:53]}  Qc7 {[%clk 0:02:51]} 12. Nd2 {[%clk 0:02:53]}  Rbd8 {[%clk 0:02:49]} 13. Nc4 {[%clk 0:02:52]}  Nb8 {[%clk 0:02:49]} 14. Nb6 {[%clk 0:02:51]}  Nc6 {[%clk 0:02:49]} 15. Ncd5 {[%clk 0:02:48]}  Nxd5 {[%clk 0:02:48]} 16. Bxg7 {[%clk 0:02:49]}  Kxg7 {[%clk 0:02:46]} 17. exd5 {[%clk 0:02:49]}  Nxa5 {[%clk 0:02:36]} 18. Na4 {[%clk 0:02:50]}  b5 {[%clk 0:02:34]} 19. Nb2 {[%clk 0:02:49]}  Qb6 {[%clk 0:02:27]} 20. Qe1 {[%clk 0:02:48]}  Nb7 {[%clk 0:02:26]} 21. Qxe7 {[%clk 0:02:48]}  Rfe8 {[%clk 0:02:22]} 22. Qh4 {[%clk 0:02:45]}  Re2 {[%clk 0:02:21]} 23. Rac1 {[%clk 0:02:45]}  Rde8 {[%clk 0:02:20]} 24. Nd1 {[%clk 0:02:46]}  R8e5 {[%clk 0:02:08]} 25. Nc3 {[%clk 0:02:43]}  Rd2 {[%clk 0:02:04]} 26. Qf4 {[%clk 0:02:42]}  Rde2 {[%clk 0:01:53]} 27. Nxe2 {[%clk 0:02:40]}  Rxe2 {[%clk 0:01:54]} 28. Rfe1 {[%clk 0:02:40]}  Rxe1+ {[%clk 0:01:52]} 29. Rxe1 {[%clk 0:02:41]}  Qc7 {[%clk 0:01:50]} 30. h4 {[%clk 0:02:41]}  h5 {[%clk 0:01:50]} 31. Qg5 {[%clk 0:02:41]}  Nd8 {[%clk 0:01:45]} 32. Re7 {[%clk 0:02:36]}  Qa5 {[%clk 0:01:44]} 33. Kh2 {[%clk 0:02:33]}  Qc3 {[%clk 0:01:39]} 34. Rd7 {[%clk 0:02:30]} 1-0


[Site "https://www.chess.com"]

[Event "Titled Tuesday Blitz February 01 B 2022"]
[White "Grigoriants, Sergey"]
[Black "Grebeniuk, Semen"]
[WhiteFideId "4130804"]
[BlackFideId "14117509"]
[WhiteElo "2502"]
[BlackElo "2234"]
[Result "1-0"]
[Round "02"]
[TimeControl "180+1"]
[Date "2022.02.01"]
[WhiteClock "0:00:06"]
[BlackClock "0:00:11"]

1. e4 {[%clk 0:03:00]}  d5 {[%clk 0:02:59]} 2. exd5 {[%clk 0:03:00]}  Qxd5 {[%clk 0:03:00]} 3. Nc3 {[%clk 0:03:00]}  Qa5 {[%clk 0:03:00]} 4. Bc4 {[%clk 0:03:00]}  Nf6 {[%clk 0:03:00]} 5. d3 {[%clk 0:03:00]}  c6 {[%clk 0:03:00]} 6. Bd2 {[%clk 0:02:59]}  Qc7 {[%clk 0:03:00]} 7. Qe2 {[%clk 0:02:59]}  Nbd7 {[%clk 0:02:57]} 8. a3 {[%clk 0:02:48]}  e5 {[%clk 0:02:44]} 9. O-O-O {[%clk 0:02:26]}  Bd6 {[%clk 0:02:43]} 10. Ba2 {[%clk 0:02:20]}  O-O {[%clk 0:02:40]} 11. g4 {[%clk 0:02:18]}  Nb6 {[%clk 0:02:32]} 12. g5 {[%clk 0:02:18]}  Nfd5 {[%clk 0:02:33]} 13. Ne4 {[%clk 0:02:16]}  Be6 {[%clk 0:02:29]} 14. Kb1 {[%clk 0:02:13]}  Rfe8 {[%clk 0:02:20]} 15. h4 {[%clk 0:02:10]}  Nf4 {[%clk 0:02:19]} 16. Bxf4 {[%clk 0:02:04]}  Bxa2+ {[%clk 0:02:18]} 17. Kxa2 {[%clk 0:02:03]}  exf4 {[%clk 0:02:19]} 18. Qg4 {[%clk 0:01:59]}  Bf8 {[%clk 0:02:06]} 19. h5 {[%clk 0:01:52]}  Rad8 {[%clk 0:02:01]} 20. Ne2 {[%clk 0:01:38]}  Nd5 {[%clk 0:01:38]} 21. c4 {[%clk 0:01:29]}  Nb6 {[%clk 0:01:25]} 22. h6 {[%clk 0:01:18]}  Rxe4 {[%clk 0:01:15]} 23. dxe4 {[%clk 0:01:10]}  Nxc4 {[%clk 0:01:16]} 24. Rxd8 {[%clk 0:00:32]}  Qxd8 {[%clk 0:01:15]} 25. Rc1 {[%clk 0:00:32]}  Qd3 {[%clk 0:00:53]} 26. Rc3 {[%clk 0:00:18]}  Ne5 {[%clk 0:00:34]} 27. Rxd3 {[%clk 0:00:12]}  Nxg4 {[%clk 0:00:33]} 28. Rd8 {[%clk 0:00:13]}  gxh6 {[%clk 0:00:31]} 29. gxh6 {[%clk 0:00:12]}  Nxh6 {[%clk 0:00:32]} 30. Nxf4 {[%clk 0:00:12]}  Ng4 {[%clk 0:00:25]} 31. Nh3 {[%clk 0:00:10]}  Kg7 {[%clk 0:00:13]} 32. Rd7 {[%clk 0:00:10]}  b5 {[%clk 0:00:13]} 33. Rxa7 {[%clk 0:00:09]}  Ne5 {[%clk 0:00:13]} 34. b3 {[%clk 0:00:09]}  Bc5 {[%clk 0:00:13]} 35. Ra6 {[%clk 0:00:07]}  Bd4 {[%clk 0:00:13]} 36. f4 {[%clk 0:00:07]}  Nd3 {[%clk 0:00:13]} 37. Rxc6 {[%clk 0:00:06]}  Be3 {[%clk 0:00:12]} 38. Kb1 {[%clk 0:00:05]}  b4 {[%clk 0:00:11]} 39. a4 {[%clk 0:00:05]}  Bd2 {[%clk 0:00:09]} 40. a5 {[%clk 0:00:05]}  Bc3 {[%clk 0:00:09]} 41. a6 {[%clk 0:00:05]}  h5 {[%clk 0:00:10]} 42. a7 {[%clk 0:00:05]}  Nc5 {[%clk 0:00:09]} 43. Rxc5 {[%clk 0:00:04]}  Bd4 {[%clk 0:00:10]} 44. Rg5+ {[%clk 0:00:05]}  Kh6 {[%clk 0:00:10]} 45. a8=Q {[%clk 0:00:06]}  Bf6 {[%clk 0:00:10]} 46. Qf8+ {[%clk 0:00:06]}  Bg7 {[%clk 0:00:11]} 47. Qxg7# {[%clk 0:00:06]} 1-0


[Site "https://www.chess.com"]

[Event "Titled Tuesday Blitz February 01 B 2022"]
[White "Hardaway, Brewington"]
[Black "Martinez Alcantara, Jose Eduardo"]
[WhiteFideId "30941849"]
[BlackFideId "3805662"]
[WhiteElo "1768"]
[BlackElo "2690"]
[Result "0-1"]
[Round "02"]
[TimeControl "180+1"]
[Date "2022.02.01"]
[WhiteClock "0:00:15"]
[BlackClock "0:00:54"]

1. e4 {[%clk 0:03:00]}  c5 {[%clk 0:02:59]} 2. Nf3 {[%clk 0:02:58]}  d6 {[%clk 0:02:59]} 3. d4 {[%clk 0:02:58]}  cxd4 {[%clk 0:03:00]} 4. Nxd4 {[%clk 0:02:59]}  Nf6 {[%clk 0:03:00]} 5. Nc3 {[%clk 0:02:59]}  a6 {[%clk 0:03:01]} 6. a4 {[%clk 0:02:58]}  e5 {[%clk 0:03:00]} 7. Nb3 {[%clk 0:02:56]}  Be7 {[%clk 0:03:00]} 8. Be3 {[%clk 0:02:55]}  O-O {[%clk 0:02:58]} 9. f3 {[%clk 0:02:55]}  Be6 {[%clk 0:02:58]} 10. Nd5 {[%clk 0:02:55]}  Bxd5 {[%clk 0:02:54]} 11. exd5 {[%clk 0:02:54]}  Nbd7 {[%clk 0:02:55]} 12. Qd2 {[%clk 0:02:52]}  b6 {[%clk 0:02:49]} 13. Be2 {[%clk 0:02:45]}  Qc7 {[%clk 0:02:32]} 14. O-O {[%clk 0:02:44]}  Rfc8 {[%clk 0:02:32]} 15. c4 {[%clk 0:02:43]}  Nc5 {[%clk 0:02:28]} 16. Nxc5 {[%clk 0:02:28]}  bxc5 {[%clk 0:02:29]} 17. Bd1 {[%clk 0:02:26]}  Rab8 {[%clk 0:02:28]} 18. b3 {[%clk 0:02:26]}  g6 {[%clk 0:02:16]} 19. Bc2 {[%clk 0:02:25]}  Re8 {[%clk 0:02:13]} 20. Rae1 {[%clk 0:02:23]}  Qd8 {[%clk 0:02:11]} 21. Qc3 {[%clk 0:02:08]}  Nh5 {[%clk 0:02:08]} 22. g4 {[%clk 0:02:03]}  Nf4 {[%clk 0:02:07]} 23. Bxf4 {[%clk 0:02:03]}  exf4 {[%clk 0:02:08]} 24. Qd2 {[%clk 0:01:58]}  Bf6 {[%clk 0:01:53]} 25. Qxf4 {[%clk 0:01:44]}  Be5 {[%clk 0:01:53]} 26. Qd2 {[%clk 0:01:43]}  Qf6 {[%clk 0:01:54]} 27. g5 {[%clk 0:01:24]}  Qf4 {[%clk 0:01:33]} 28. Qxf4 {[%clk 0:01:23]}  Bxf4 {[%clk 0:01:34]} 29. h4 {[%clk 0:01:20]}  Bg3 {[%clk 0:01:34]} 30. Re4 {[%clk 0:01:01]}  Rxe4 {[%clk 0:01:33]} 31. Bxe4 {[%clk 0:01:02]}  Bxh4 {[%clk 0:01:31]} 32. f4 {[%clk 0:01:02]}  Re8 {[%clk 0:01:31]} 33. Bg2 {[%clk 0:00:53]}  Be1 {[%clk 0:01:24]} 34. Kh2 {[%clk 0:00:51]}  Re2 {[%clk 0:01:19]} 35. Kh3 {[%clk 0:00:43]}  Bc3 {[%clk 0:01:18]} 36. Rf3 {[%clk 0:00:26]}  Bd4 {[%clk 0:01:09]} 37. f5 {[%clk 0:00:23]}  Be3 {[%clk 0:01:02]} 38. fxg6 {[%clk 0:00:23]}  hxg6 {[%clk 0:01:00]} 39. Bf1 {[%clk 0:00:23]}  Re1 {[%clk 0:01:00]} 40. Kg4 {[%clk 0:00:23]}  Kg7 {[%clk 0:01:00]} 41. Kh4 {[%clk 0:00:21]}  Bc1 {[%clk 0:00:58]} 42. Kg4 {[%clk 0:00:21]}  Re4+ {[%clk 0:00:58]} 43. Kg3 {[%clk 0:00:20]}  Bxg5 {[%clk 0:00:58]} 44. Bd3 {[%clk 0:00:20]}  Re5 {[%clk 0:00:55]} 45. Kg4 {[%clk 0:00:20]}  Bd2 {[%clk 0:00:54]} 46. Bc2 {[%clk 0:00:15]}  f5+ {[%clk 0:00:53]} 47. Kg3 {[%clk 0:00:15]}  Kf6 {[%clk 0:00:53]} 48. Rf2 {[%clk 0:00:15]}  Be1 {[%clk 0:00:54]} 0-1


[Site "https://www.chess.com"]

[Event "Titled Tuesday Blitz February 01 B 2022"]
[White "Hess, Robert"]
[Black "Krishnan, Varun"]
[WhiteFideId "2022036"]
[BlackFideId "5054508"]
[WhiteElo "2557"]
[BlackElo "2558"]
[Result "1-0"]
[Round "02"]
[TimeControl "180+1"]
[Date "2022.02.01"]
[WhiteClock "0:00:03"]
[BlackClock "0:00:04"]

1. b3 {[%clk 0:03:00]}  e5 {[%clk 0:02:57]} 2. Bb2 {[%clk 0:03:01]}  Nc6 {[%clk 0:02:51]} 3. h3 {[%clk 0:03:01]}  d5 {[%clk 0:02:50]} 4. d3 {[%clk 0:03:01]}  Nf6 {[%clk 0:02:47]} 5. Nd2 {[%clk 0:03:02]}  Bd6 {[%clk 0:02:43]} 6. a3 {[%clk 0:03:02]}  O-O {[%clk 0:02:43]} 7. g4 {[%clk 0:03:02]}  h6 {[%clk 0:02:42]} 8. Bg2 {[%clk 0:03:02]}  Re8 {[%clk 0:02:42]} 9. e3 {[%clk 0:02:57]}  e4 {[%clk 0:02:36]} 10. dxe4 {[%clk 0:02:39]}  Nxe4 {[%clk 0:02:31]} 11. Nxe4 {[%clk 0:02:38]}  dxe4 {[%clk 0:02:32]} 12. Ne2 {[%clk 0:02:36]}  Ne5 {[%clk 0:02:19]} 13. Ng3 {[%clk 0:01:58]}  Ng6 {[%clk 0:01:56]} 14. Qd4 {[%clk 0:01:43]}  f6 {[%clk 0:01:38]} 15. Bxe4 {[%clk 0:01:23]}  Ne5 {[%clk 0:01:25]} 16. Nf5 {[%clk 0:00:39]}  Bxf5 {[%clk 0:01:13]} 17. gxf5 {[%clk 0:00:40]}  Qe7 {[%clk 0:01:10]} 18. Bxb7 {[%clk 0:00:22]}  Rad8 {[%clk 0:01:08]} 19. Qe4 {[%clk 0:00:21]}  c6 {[%clk 0:01:01]} 20. Bxc6 {[%clk 0:00:20]}  Nxc6 {[%clk 0:00:58]} 21. Qxc6 {[%clk 0:00:21]}  Be5 {[%clk 0:00:37]} 22. Bxe5 {[%clk 0:00:11]}  Qxe5 {[%clk 0:00:38]} 23. O-O {[%clk 0:00:11]}  Qxf5 {[%clk 0:00:33]} 24. Kg2 {[%clk 0:00:05]}  Re5 {[%clk 0:00:20]} 25. Rad1 {[%clk 0:00:03]}  Rc8 {[%clk 0:00:15]} 26. Qd7 {[%clk 0:00:02]}  Qg6+ {[%clk 0:00:14]} 27. Kh2 {[%clk 0:00:01]}  Rxc2 {[%clk 0:00:13]} 28. Rd2 {[%clk 0:00:01]}  Rxd2 {[%clk 0:00:13]} 29. Qxd2 {[%clk 0:00:02]}  Rg5 {[%clk 0:00:13]} 30. f4 {[%clk 0:00:02]}  Rc5 {[%clk 0:00:08]} 31. Rf2 {[%clk 0:00:01]}  Qe4 {[%clk 0:00:06]} 32. Rg2 {[%clk 0:00:02]}  Rd5 {[%clk 0:00:05]} 33. Qf2 {[%clk 0:00:02]}  Rd3 {[%clk 0:00:04]} 34. Qg3 {[%clk 0:00:02]}  g6 {[%clk 0:00:04]} 35. Qxg6+ {[%clk 0:00:02]}  Qxg6 {[%clk 0:00:05]} 36. Rxg6+ {[%clk 0:00:03]}  Kf7 {[%clk 0:00:06]} 37. Rxh6 {[%clk 0:00:03]}  Rxb3 {[%clk 0:00:05]} 38. Rh7+ {[%clk 0:00:04]}  Kg6 {[%clk 0:00:06]} 39. Rxa7 {[%clk 0:00:05]}  Rxe3 {[%clk 0:00:06]} 40. Ra4 {[%clk 0:00:05]}  Kh5 {[%clk 0:00:05]} 41. Kg2 {[%clk 0:00:05]}  f5 {[%clk 0:00:06]} 42. Ra8 {[%clk 0:00:04]}  Rb3 {[%clk 0:00:05]} 43. Rg8 {[%clk 0:00:03]}  Kh4 {[%clk 0:00:04]} 44. Rh8# {[%clk 0:00:03]} 1-0


[Site "https://www.chess.com"]

[Event "Titled Tuesday Blitz February 01 B 2022"]
[White "Isajevsky, Anton"]
[Black "Bortnyk, Olexandr"]
[WhiteFideId "4142500"]
[BlackFideId "14120828"]
[WhiteElo "2510"]
[BlackElo "2723"]
[Result "0-1"]
[Round "02"]
[TimeControl "180+1"]
[Date "2022.02.01"]
[WhiteClock "0:00:14"]
[BlackClock "0:00:38"]

1. c4 {[%clk 0:03:00]}  Nf6 {[%clk 0:02:55]} 2. Nc3 {[%clk 0:03:00]}  d6 {[%clk 0:02:55]} 3. g3 {[%clk 0:03:00]}  g6 {[%clk 0:02:54]} 4. Bg2 {[%clk 0:03:00]}  Bg7 {[%clk 0:02:55]} 5. e3 {[%clk 0:02:57]}  O-O {[%clk 0:02:56]} 6. Nge2 {[%clk 0:02:56]}  c6 {[%clk 0:02:49]} 7. O-O {[%clk 0:02:56]}  Bf5 {[%clk 0:02:45]} 8. d3 {[%clk 0:02:52]}  Qc8 {[%clk 0:02:44]} 9. Re1 {[%clk 0:02:47]}  a5 {[%clk 0:02:43]} 10. b3 {[%clk 0:02:24]}  Na6 {[%clk 0:02:38]} 11. Bb2 {[%clk 0:02:23]}  e5 {[%clk 0:02:25]} 12. a3 {[%clk 0:01:55]}  h5 {[%clk 0:02:15]} 13. Ne4 {[%clk 0:01:43]}  Bxe4 {[%clk 0:02:12]} 14. dxe4 {[%clk 0:01:42]}  Rd8 {[%clk 0:02:12]} 15. Nc3 {[%clk 0:01:38]}  Qe6 {[%clk 0:02:05]} 16. Qc2 {[%clk 0:01:25]}  Rac8 {[%clk 0:01:58]} 17. Rad1 {[%clk 0:00:57]}  b5 {[%clk 0:01:50]} 18. Bf1 {[%clk 0:00:49]}  b4 {[%clk 0:01:17]} 19. axb4 {[%clk 0:00:50]}  Nxb4 {[%clk 0:01:16]} 20. Qb1 {[%clk 0:00:45]}  Rb8 {[%clk 0:01:17]} 21. Na4 {[%clk 0:00:42]}  Bf8 {[%clk 0:01:13]} 22. Bc3 {[%clk 0:00:35]}  Rd7 {[%clk 0:01:11]} 23. Rd2 {[%clk 0:00:34]}  Rdb7 {[%clk 0:01:11]} 24. Rb2 {[%clk 0:00:33]}  h4 {[%clk 0:01:09]} 25. Be2 {[%clk 0:00:26]}  Be7 {[%clk 0:01:09]} 26. Kg2 {[%clk 0:00:26]}  Kg7 {[%clk 0:01:09]} 27. Qd1 {[%clk 0:00:20]}  Nxe4 {[%clk 0:01:06]} 28. Bf3 {[%clk 0:00:17]}  Ng5 {[%clk 0:00:48]} 29. Bg4 {[%clk 0:00:15]}  f5 {[%clk 0:00:48]} 30. Be2 {[%clk 0:00:15]}  Ne4 {[%clk 0:00:48]} 31. Bf3 {[%clk 0:00:14]}  Nxc3 {[%clk 0:00:48]} 32. Nxc3 {[%clk 0:00:14]}  e4 {[%clk 0:00:49]} 33. Be2 {[%clk 0:00:14]}  Bf6 {[%clk 0:00:49]} 34. Qd2 {[%clk 0:00:14]}  Na6 {[%clk 0:00:38]} 0-1


[Site "https://www.chess.com"]